[Event "44th Chess Olympiad Open 2022"]
[Site "Chennai"]
[Date "2022.08.09"]
[Round "11.39"]
[White "Olson, Hamish"]
[Black "Zhemba, Jemusse"]
[Result "0-1"]
[ECO "E14"]
[WhiteElo "2343"]
[BlackElo "2162"]
[Annotator "RC"]
[PlyCount "116"]
[EventDate "2022.07.29"]
[EventType "team-tourn"]
[EventCountry "IND"]
[SourceTitle "playchess.com"]
[Source "ChessBase"]
[SourceQuality "1"]
[WhiteTeam "Scotland"]
[BlackTeam "Zimbabwe"]
[WhiteTeamCountry "SCO"]
[BlackTeamCountry "ZIM"]
[TimeControl "40/5400+30:1800+30"]

1. d4 {[%emt 0:00:02]} Nf6 {[%emt 0:00:06]} 2. Nf3 {[%emt 0:00:12]} b6 {[%emt 0:00:02]} 3. c4 {[%emt 0:01:02]} Bb7 {[%emt 0:00:21]} 4. e3 {[%emt 0:00:31]} e6 {[%emt 0:00:15]} 5. Bd3 {[%emt 0:00:14]} c5 {[%emt 0:00:12]} 6. O-O {[%emt 0:00:26]} Be7 {[%emt 0:02:21]} 7. Nc3 {[%emt 0:00:12]} O-O {[%emt 0:02:47]} 8. d5 {[%emt 0:00:44]} exd5 {[%emt 0:02:27]} 9. cxd5 {[%emt 0:00:11]} Re8 {[%emt 0:00:06]} 10. e4 {[%emt 0:01:02]} d6 {[%emt 0:00:04]} 11. h3 {[%emt 0:02:33]} Nbd7 {[%emt 0:00:45]} 12. Bf4 {[%emt 0:00:45]} Bf8 {[%emt 0:00:07]} 13. Re1 {[%emt 0:01:16]} a6 {[%emt 0:02:00]} 14. a4 {[%emt 0:01:40]} Qc7 {[%emt 0:00:32]} 15. Nd2 {[%emt 0:01:01]} g6 {[%emt 0:02:46]} 16. Bh2 {[%emt 0:02:35]} Bg7 {[%emt 0:05:05]} 17. Nc4 {[%emt 0:01:36]} Ne5 {[%emt 0:00:14]} 18. Bxe5 {[%emt 0:00:56]} dxe5 {[%emt 0:00:06]} 19. Qb3 {[%emt 0:00:30]} Nd7 {[%emt 0:00:54]} 20. d6 {[%emt 0:01:58]} Qd8 {[%emt 0:00:32]} 21. Ne3 {[%emt 0:08:29]} Re6 {[%emt 0:04:56]} 22. Bc4 {[%emt 0:01:36]} Rxd6 {[%emt 0:00:09]} 23. Bxf7+ {[%emt 0:00:37]} Kh8 {[%emt 0:00:08]} 24. Bd5 {[%emt 0:01:06]} Rb8 {[%emt 0:03:35]} 25. Nc4 {[%emt 0:01:31]} Bxd5 {[%emt 0:03:30]} 26. Nxd5 {[%emt 0:01:36]} Rc6 {[%emt 0:01:42]} 27. Nc3 {[%emt 0:07:13]} Qg8 {[%emt 0:04:55]} 28. Red1 {[%emt 0:03:51]} Nf8 {[%emt 0:00:26]} 29. Nd5 {[%emt 0:01:04]} Qf7 {[%emt 0:01:21]} 30. Qg3 {[%emt 0:01:21]} Qe8 {[%emt 0:01:23]} 31. Kh1 {[%emt 0:07:53]} b5 {[%emt 0:06:55]} 32. axb5 {[%emt 0:01:38]} axb5 {[%emt 0:00:33]} 33. Nce3 {[%emt 0:05:06]} Rb7 {[%emt 0:00:15]} 34. Ra5 {[%emt 0:06:53]} h6 {[%emt 0:01:44]} 35. Rda1 {[%emt 0:03:49]} Qf7 {[%emt 0:06:14]} 36. Ra8 {[%emt 0:02:17]} Kh7 {[%emt 0:00:49]} 37. Ng4 {[%emt 0:02:27]} Re6 {[%emt 0:02:31]} 38. R1a3 {[%emt 0:01:13]} Qg8 {[%emt 0:05:38]} 39. Rc8 {[%emt 0:05:54]} c4 {[%emt 0:02:20]} 40. Raa8 {[%emt 0:02:40]} Qf7 {[%emt 0:01:10]} 41. Qh4 {[%emt 0:36:51]} g5 {[%emt 0:30:51]} 42. Qg3 {[%emt 0:00:33]} Ng6 {[%emt 0:00:16]} 43. Nge3 {[%emt 0:02:09]} Ra7 {[%emt 0:00:28]} 44. Nf5 {[%emt 0:05:21]} Rea6 {[%emt 0:02:41]} 45. Rxa7 {[%emt 0:08:53]} Rxa7 {[%emt 0:00:07]} 46. Rb8 {[%emt 0:00:00]} Nf4 {[%emt 0:00:00]} 47. Rxb5 {[%emt 0:00:00]} Qd7 {[%emt 0:00:00]} 48. Rb6 {[%emt 0:00:00]} Nxd5 {[%emt 0:00:00]} 49. Rd6 {[%emt 0:00:00]} Qa4 {[%emt 0:00:00]} 50. Rxd5 {[%emt 0:00:00]} Qa1+ {[%emt 0:00:00]} 51. Kh2 {[%emt 0:00:00]} Qxb2 {[%emt 0:00:00]} 52. Rc5 {[%emt 0:00:00]} Ra3 {[%emt 0:00:00]} 53. Qg4 {[%emt 0:00:00]} Qxf2 {[%emt 0:00:00]} 54. Ng3 {[%emt 0:00:00]} Qxc5 {[%emt 0:00:00]} 55. Qf5+ {[%emt 0:00:00]} Kh8 {[%emt 0:00:00]} 56. Nh5 {[%emt 0:00:00]} Ra1 {[%emt 0:00:00]} 57. Nf6 {[%emt 0:00:48]} Qg1+ {[%emt 0:00:00]} 58. Kg3 {[%emt 0:00:22]} Qe3+ {[%emt 0:00:00]} 0-1

[Event "44th Chess Olympiad Open 2022"]
[Site "Chennai"]
[Date "2022.08.09"]
[Round "11.39"]
[White "Masango, Spencer"]
[Black "Gourlay, Iain"]
[Result "1-0"]
[ECO "D15"]
[WhiteElo "2170"]
[BlackElo "2321"]
[Annotator "RC"]
[PlyCount "115"]
[EventDate "2022.07.29"]
[EventType "team-tourn"]
[EventCountry "IND"]
[SourceTitle "playchess.com"]
[Source "ChessBase"]
[SourceQuality "1"]
[WhiteTeam "Zimbabwe"]
[BlackTeam "Scotland"]
[WhiteTeamCountry "ZIM"]
[BlackTeamCountry "SCO"]
[TimeControl "40/5400+30:1800+30"]

1. Nf3 {[%emt 0:00:09]} d5 {[%emt 0:00:11]} 2. c4 {[%emt 0:00:09]} c6 {[%emt 0:00:20]} 3. d4 {[%emt 0:00:16]} Nf6 {[%emt 0:00:18]} 4. Nc3 {[%emt 0:00:18]} a6 {[%emt 0:00:59]} 5. Bf4 {[%emt 0:04:47]} dxc4 {[%emt 0:03:57]} 6. a4 {[%emt 0:00:26]} Bf5 {[%emt 0:04:50]} 7. e3 {[%emt 0:00:41]} Nd5 {[%emt 0:00:40]} 8. Bxc4 {[%emt 0:04:51]} Nxf4 {[%emt 0:01:03]} 9. exf4 {[%emt 0:00:05]} e6 {[%emt 0:01:04]} 10. Qb3 {[%emt 0:12:39]} Qc7 {[%emt 0:07:13]} 11. Nh4 {[%emt 0:11:34]} Bg4 {[%emt 0:02:56]} 12. h3 {[%emt 0:01:00]} Bh5 {[%emt 0:00:42]} 13. g4 {[%emt 0:01:53]} Be7 {[%emt 0:04:10]} 14. Ng2 {[%emt 0:01:06]} Bg6 {[%emt 0:03:34]} 15. h4 {[%emt 0:02:10]} h5 {[%emt 0:14:36]} 16. f5 {[%emt 0:00:49]} exf5 {[%emt 0:01:39]} 17. gxf5 {[%emt 0:00:14]} Bxf5 {[%emt 0:00:20]} 18. Bxf7+ {[%emt 0:00:15]} Kf8 {[%emt 0:04:27]} 19. Ne3 {[%emt 0:01:37]} Bh7 {[%emt 0:02:22]} 20. Rh3 {[%emt 0:19:46]} Nd7 {[%emt 0:03:32]} 21. Be6 {[%emt 0:04:41]} Nf6 {[%emt 0:02:31]} 22. Rf3 {[%emt 0:03:57]} Qd6 {[%emt 0:15:28]} 23. O-O-O {[%emt 0:03:34]} Qb4 {[%emt 0:02:32]} 24. Qa2 {[%emt 0:02:44]} Rd8 {[%emt 0:02:17]} 25. Nc4 {[%emt 0:05:39]} Ke8 {[%emt 0:04:21]} 26. Re3 {[%emt 0:01:37]} Nd5 {[%emt 0:03:53]} 27. Bxd5 {[%emt 0:04:10]} cxd5 {[%emt 0:00:18]} 28. Rde1 {[%emt 0:01:45]} dxc4 {[%emt 0:03:30]} 29. Rxe7+ {[%emt 0:00:35]} Kf8 {[%emt 0:00:42]} 30. Rc7 {[%emt 0:00:47]} Bd3 {[%emt 0:00:36]} 31. d5 {[%emt 0:04:53]} Rh6 {[%emt 0:01:38]} 32. Ree7 {[%emt 0:01:22]} Qxe7 {[%emt 0:02:27]} 33. Rxe7 {[%emt 0:00:04]} Kxe7 {[%emt 0:00:07]} 34. Qa3+ {[%emt 0:00:29]} Kd7 {[%emt 0:02:00]} 35. Qc5 {[%emt 0:00:43]} Rc8 {[%emt 0:00:52]} 36. Qd4 {[%emt 0:00:56]} Rf6 {[%emt 0:00:24]} 37. Nd1 {[%emt 0:02:43]} Re8 {[%emt 0:01:01]} 38. Qa7 {[%emt 0:00:52]} Kc7 {[%emt 0:03:36]} 39. Qc5+ {[%emt 0:00:17]} Kd7 {[%emt 0:00:51]} 40. Qa7 {[%emt 0:00:31]} Kc7 {[%emt 0:00:09]} 41. Qc5+ {[%emt 0:31:32]} Kb8 {[%emt 0:03:14]} 42. d6 {[%emt 0:00:00]} Rc8 {[%emt 0:00:58]} 43. Qe5 {[%emt 0:00:00]} Rf5 {[%emt 0:05:59]} 44. Qg3 {[%emt 0:00:00]} Rg8 {[%emt 0:09:02]} 45. d7+ {[%emt 0:00:00]} Ka8 {[%emt 0:02:56]} 46. Qc7 {[%emt 0:00:00]} Rff8 {[%emt 0:00:15]} 47. Ne3 {[%emt 0:00:00]} Rd8 {[%emt 0:00:23]} 48. Nd5 {[%emt 0:00:00]} Bf5 {[%emt 0:00:10]} 49. Nb6+ {[%emt 0:00:00]} Ka7 {[%emt 0:00:05]} 50. Qc5 {[%emt 0:00:00]} Bg4 {[%emt 0:00:36]} 51. f4 {[%emt 0:00:00]} Kb8 {[%emt 0:00:23]} 52. Qd6+ {[%emt 0:00:00]} Ka7 {[%emt 0:00:11]} 53. a5 {[%emt 0:00:00]} Rgf8 {[%emt 0:01:42]} 54. Qc5 {[%emt 0:00:00]} Kb8 {[%emt 0:00:16]} 55. Qe5+ {[%emt 0:00:00]} Ka7 {[%emt 0:00:08]} 56. Nc8+ {[%emt 0:00:00]} Ka8 {[%emt 0:00:56]} 57. Qd4 {[%emt 0:00:00]} g6 {[%emt 0:03:34]} 58. Qa7# {[%emt 0:00:00]} 1-0

[Event "44th Chess Olympiad Open 2022"]
[Site "Chennai"]
[Date "2022.08.09"]
[Round "11.39"]
[White "Mwadzura, Roy"]
[Black "Tate, Alan"]
[Result "1-0"]
[ECO "C54"]
[WhiteElo "2093"]
[BlackElo "2313"]
[Annotator "RC"]
[PlyCount "81"]
[EventDate "2022.07.29"]
[EventType "team-tourn"]
[EventCountry "IND"]
[SourceTitle "playchess.com"]
[Source "ChessBase"]
[SourceQuality "1"]
[WhiteTeam "Zimbabwe"]
[BlackTeam "Scotland"]
[WhiteTeamCountry "ZIM"]
[BlackTeamCountry "SCO"]
[TimeControl "40/5400+30:1800+30"]

1. e4 {[%emt 0:02:26]} e5 {[%emt 0:00:51]} 2. Nf3 {[%emt 0:00:07]} Nc6 {[%emt 0:00:15]} 3. Bc4 {[%emt 0:00:18]} Nf6 {[%emt 0:00:07]} 4. d3 {[%emt 0:00:18]} Bc5 {[%emt 0:00:55]} 5. c3 {[%emt 0:00:19]} d6 {[%emt 0:00:19]} 6. Bb3 {[%emt 0:00:49]} a6 {[%emt 0:03:21]} 7. Be3 {[%emt 0:01:22]} O-O {[%emt 0:05:41]} 8. Nbd2 {[%emt 0:00:32]} Bxe3 {[%emt 0:02:53]} 9. fxe3 {[%emt 0:00:06]} Be6 {[%emt 0:01:06]} 10. O-O {[%emt 0:10:22]} Bxb3 {[%emt 0:08:09]} 11. Qxb3 {[%emt 0:01:26]} b5 {[%emt 0:22:30]} 12. d4 {[%emt 0:06:22]} Ne7 {[%emt 0:15:43]} 13. h3 {[%emt 0:24:17]} Ng6 {[%emt 0:03:51]} 14. Rf2 {[%emt 0:01:57]} c5 {[%emt 0:05:25]} 15. d5 {[%emt 0:00:22]} c4 {[%emt 0:01:57]} 16. Qc2 {[%emt 0:00:05]} Qb6 {[%emt 0:02:33]} 17. Nf1 {[%emt 0:03:30]} Nd7 {[%emt 0:01:15]} 18. g4 {[%emt 0:03:24]} Nc5 {[%emt 0:01:43]} 19. h4 {[%emt 0:00:59]} Nd3 {[%emt 0:01:11]} 20. Rh2 {[%emt 0:00:09]} a5 {[%emt 0:02:56]} 21. h5 {[%emt 0:02:39]} Ne7 {[%emt 0:00:21]} 22. Qg2 {[%emt 0:03:20]} f6 {[%emt 0:05:41]} 23. Nh4 {[%emt 0:02:03]} Rf7 {[%emt 0:04:15]} 24. Kh1 {[%emt 0:00:33]} h6 {[%emt 0:01:29]} 25. Qf3 {[%emt 0:00:35]} Kf8 {[%emt 0:01:50]} 26. Ng3 {[%emt 0:00:06]} Ke8 {[%emt 0:00:53]} 27. Rf1 {[%emt 0:00:12]} Kd7 {[%emt 0:01:26]} 28. Ng6 {[%emt 0:03:35]} Kc7 {[%emt 0:01:15]} 29. g5 {[%emt 0:02:37]} hxg5 {[%emt 0:00:18]} 30. Nxe7 {[%emt 0:00:14]} Rxe7 {[%emt 0:00:02]} 31. h6 {[%emt 0:00:15]} gxh6 {[%emt 0:02:24]} 32. Qxf6 {[%emt 0:01:05]} Rd7 {[%emt 0:00:01]} 33. Nf5 {[%emt 0:00:37]} g4 {[%emt 0:01:05]} 34. Rxh6 {[%emt 0:02:13]} g3 {[%emt 0:00:27]} 35. Kg2 {[%emt 0:01:38]} Nf2 {[%emt 0:00:13]} 36. Rh4 {[%emt 0:01:47]} Rg8 {[%emt 0:00:16]} 37. Qe6 {[%emt 0:04:05]} Rg4 {[%emt 0:01:52]} 38. Rh8 {[%emt 0:01:00]} Nxe4 {[%emt 0:02:13]} 39. Ne7 {[%emt 0:09:33]} Qxe3 {[%emt 0:00:15]} 40. Rc8+ {[%emt 0:00:05]} Kb6 {[%emt 0:00:04]} 41. Rc6+ {[%emt 0:30:12]} 1-0

[Event "44th Chess Olympiad Open 2022"]
[Site "Chennai"]
[Date "2022.08.09"]
[Round "11.40"]
[White "Cawdery, Daniel"]
[Black "Chekh Adm Khedr, Aram"]
[Result "1-0"]
[ECO "C54"]
[WhiteElo "2417"]
[BlackElo "2147"]
[Annotator "RC"]
[PlyCount "103"]
[EventDate "2022.07.29"]
[EventType "team-tourn"]
[EventCountry "IND"]
[SourceTitle "playchess.com"]
[Source "ChessBase"]
[SourceQuality "1"]
[WhiteTeam "South Africa"]
[BlackTeam "Syria"]
[WhiteTeamCountry "RSA"]
[BlackTeamCountry "SYR"]
[TimeControl "40/5400+30:1800+30"]

1. e4 {[%emt 0:00:02]} e5 {[%emt 0:00:16]} 2. Nf3 {[%emt 0:00:17]} Nc6 {[%emt 0:00:05]} 3. Bc4 {[%emt 0:02:27]} Bc5 {[%emt 0:09:42]} 4. c3 {[%emt 0:01:02]} Nf6 {[%emt 0:00:09]} 5. d4 {[%emt 0:03:31]} exd4 {[%emt 0:01:41]} 6. b4 {[%emt 0:01:14]} Be7 {[%emt 0:22:19]} 7. e5 {[%emt 0:00:48]} Ne4 {[%emt 0:00:19]} 8. b5 {[%emt 0:03:24]} Na5 {[%emt 0:03:56]} 9. Bd3 {[%emt 0:00:34]} Nxc3 {[%emt 0:01:44]} 10. Nxc3 {[%emt 0:00:30]} dxc3 {[%emt 0:00:09]} 11. Qa4 {[%emt 0:01:57]} b6 {[%emt 0:03:17]} 12. Qg4 {[%emt 0:01:26]} g6 {[%emt 0:00:04]} 13. Bh6 {[%emt 0:11:31]} d5 {[%emt 0:02:37]} 14. Qf4 {[%emt 0:02:30]} Be6 {[%emt 0:11:05]} 15. O-O {[%emt 0:04:21]} Qd7 {[%emt 0:06:39]} 16. Rac1 {[%emt 0:00:31]} O-O-O {[%emt 0:02:01]} 17. Rxc3 {[%emt 0:06:51]} d4 {[%emt 0:03:50]} 18. Rc2 {[%emt 0:00:39]} Nb7 {[%emt 0:02:16]} 19. Be4 {[%emt 0:08:24]} Qxb5 {[%emt 0:02:09]} 20. Nxd4 {[%emt 0:00:34]} Rxd4 {[%emt 0:00:48]} 21. Bxb7+ {[%emt 0:00:33]} Kxb7 {[%emt 0:00:04]} 22. Qxd4 {[%emt 0:00:05]} Rd8 {[%emt 0:01:28]} 23. Qc3 {[%emt 0:03:43]} c5 {[%emt 0:00:13]} 24. Rb2 {[%emt 0:04:30]} Qd3 {[%emt 0:01:22]} 25. Qc1 {[%emt 0:00:27]} Qc4 {[%emt 0:11:02]} 26. Rc2 {[%emt 0:04:38]} Qd5 {[%emt 0:00:06]} 27. Bg5 {[%emt 0:01:21]} Bxg5 {[%emt 0:00:43]} 28. Qxg5 {[%emt 0:00:01]} Rd7 {[%emt 0:01:11]} 29. h3 {[%emt 0:05:02]} Qd3 {[%emt 0:01:52]} 30. Qc1 {[%emt 0:04:01]} Rd4 {[%emt 0:02:49]} 31. Re1 {[%emt 0:00:00]} Rc4 {[%emt 0:00:57]} 32. Rxc4 {[%emt 0:02:19]} Qxc4 {[%emt 0:00:01]} 33. a3 {[%emt 0:02:28]} Qd4 {[%emt 0:00:56]} 34. Qe3 {[%emt 0:03:00]} Qd5 {[%emt 0:01:35]} 35. Re2 {[%emt 0:01:44]} Qb3 {[%emt 0:03:18]} 36. Qxb3 {[%emt 0:01:28]} Bxb3 {[%emt 0:00:02]} 37. Re3 {[%emt 0:00:01]} Be6 {[%emt 0:00:37]} 38. g4 {[%emt 0:01:28]} b5 {[%emt 0:00:05]} 39. f4 {[%emt 0:00:38]} b4 {[%emt 0:00:11]} 40. Kf2 {[%emt 0:02:27]} h5 {[%emt 0:05:40]} 41. axb4 {[%emt 0:43:41]} cxb4 {[%emt 0:30:06]} 42. f5 {[%emt 0:00:05]} gxf5 {[%emt 0:00:11]} 43. gxh5 {[%emt 0:00:06]} f4 {[%emt 0:00:00]} 44. Re4 {[%emt 0:00:00]} a5 {[%emt 0:00:00]} 45. h6 {[%emt 0:00:00]} Bf5 {[%emt 0:00:00]} 46. Rxf4 {[%emt 0:00:00]} b3 {[%emt 0:00:00]} 47. Rxf5 {[%emt 0:00:00]} b2 {[%emt 0:00:00]} 48. Rxf7+ {[%emt 0:00:00]} Kc6 {[%emt 0:00:00]} 49. Rf6+ {[%emt 0:00:00]} Kc5 {[%emt 0:00:00]} 50. h7 {[%emt 0:00:00]} b1=Q {[%emt 0:00:00]} 51. h8=Q {[%emt 0:00:00]} Qb2+ {[%emt 0:00:00]} 52. Kf3 {[%emt 0:00:00]} 1-0

[Event "44th Chess Olympiad Open 2022"]
[Site "Chennai"]
[Date "2022.08.09"]
[Round "11.40"]
[White "Eiti, Bashir"]
[Black "Kobese, Watu"]
[Result "1-0"]
[ECO "A45"]
[WhiteElo "2337"]
[BlackElo "2311"]
[Annotator "RC"]
[PlyCount "73"]
[EventDate "2022.07.29"]
[EventType "team-tourn"]
[EventCountry "IND"]
[SourceTitle "playchess.com"]
[Source "ChessBase"]
[SourceQuality "1"]
[WhiteTeam "Syria"]
[BlackTeam "South Africa"]
[WhiteTeamCountry "SYR"]
[BlackTeamCountry "RSA"]
[TimeControl "40/5400+30:1800+30"]

1. d4 {[%emt 0:00:04]} Nf6 {[%emt 0:00:09]} 2. Bf4 {[%emt 0:00:29]} g6 {[%emt 0:00:14]} 3. Nc3 {[%emt 0:00:11]} d5 {[%emt 0:01:23]} 4. e3 {[%emt 0:00:15]} a6 {[%emt 0:03:47]} 5. h4 {[%emt 0:01:43]} h6 {[%emt 0:02:45]} 6. Nf3 {[%emt 0:04:45]} c5 {[%emt 0:10:30]} 7. Ne5 {[%emt 0:06:17]} c4 {[%emt 0:06:51]} 8. e4 {[%emt 0:04:31]} b5 {[%emt 0:05:31]} 9. a4 {[%emt 0:09:44]} Bb7 {[%emt 0:14:58]} 10. axb5 {[%emt 0:01:49]} e6 {[%emt 0:07:28]} 11. exd5 {[%emt 0:14:34]} exd5 {[%emt 0:00:45]} 12. bxa6 {[%emt 0:09:33]} Nxa6 {[%emt 0:00:39]} 13. Be2 {[%emt 0:09:24]} Bb4 {[%emt 0:11:38]} 14. Bf3 {[%emt 0:06:33]} Kf8 {[%emt 0:07:57]} 15. Qd2 {[%emt 0:02:45]} Kg7 {[%emt 0:00:14]} 16. Bxh6+ {[%emt 0:00:50]} Rxh6 {[%emt 0:01:23]} 17. Qxh6+ {[%emt 0:00:06]} Kxh6 {[%emt 0:00:06]} 18. Nxf7+ {[%emt 0:00:05]} Kg7 {[%emt 0:00:20]} 19. Nxd8 {[%emt 0:00:05]} Rxd8 {[%emt 0:00:07]} 20. O-O {[%emt 0:01:10]} Nb8 {[%emt 0:07:13]} 21. Nd1 {[%emt 0:07:24]} Bd2 {[%emt 0:02:34]} 22. Ne3 {[%emt 0:05:01]} Nc6 {[%emt 0:00:20]} 23. c3 {[%emt 0:01:12]} Bxe3 {[%emt 0:02:55]} 24. fxe3 {[%emt 0:00:04]} Re8 {[%emt 0:00:23]} 25. Kf2 {[%emt 0:00:26]} Ne4+ {[%emt 0:01:24]} 26. Bxe4 {[%emt 0:00:17]} Rxe4 {[%emt 0:00:07]} 27. b3 {[%emt 0:03:47]} cxb3 {[%emt 0:02:02]} 28. Rfb1 {[%emt 0:00:55]} Bc8 {[%emt 0:00:26]} 29. Rxb3 {[%emt 0:01:26]} Rxh4 {[%emt 0:01:59]} 30. Rb5 {[%emt 0:01:29]} Ne7 {[%emt 0:00:40]} 31. Ra7 {[%emt 0:00:22]} Kf6 {[%emt 0:00:19]} 32. Rb8 {[%emt 0:01:39]} Be6 {[%emt 0:03:03]} 33. Rf8+ {[%emt 0:00:57]} Bf7 {[%emt 0:00:10]} 34. Kf3 {[%emt 0:00:51]} Re4 {[%emt 0:00:16]} 35. g4 {[%emt 0:02:56]} g5 {[%emt 0:00:36]} 36. c4 {[%emt 0:00:24]} Kg6 {[%emt 0:06:22]} 37. Rxf7 {[%emt 0:00:10]} 1-0

[Event "44th Chess Olympiad Open 2022"]
[Site "Chennai"]
[Date "2022.08.09"]
[Round "11.40"]
[White "Mhango, Banele"]
[Black "Koniahli, Malek."]
[Result "1/2-1/2"]
[ECO "E84"]
[WhiteElo "2238"]
[BlackElo "2238"]
[Annotator "RC"]
[PlyCount "125"]
[EventDate "2022.07.29"]
[EventType "team-tourn"]
[EventCountry "IND"]
[SourceTitle "playchess.com"]
[Source "ChessBase"]
[SourceQuality "1"]
[WhiteTeam "South Africa"]
[BlackTeam "Syria"]
[WhiteTeamCountry "RSA"]
[BlackTeamCountry "SYR"]
[TimeControl "40/5400+30:1800+30"]

1. d4 {[%emt 0:00:06]} Nf6 {[%emt 0:00:07]} 2. c4 {[%emt 0:00:06]} g6 {[%emt 0:00:04]} 3. h4 {[%emt 0:00:32]} Bg7 {[%emt 0:00:25]} 4. Nc3 {[%emt 0:00:20]} d6 {[%emt 0:00:28]} 5. e4 {[%emt 0:01:16]} Nc6 {[%emt 0:00:13]} 6. Nge2 {[%emt 0:08:24]} O-O {[%emt 0:04:55]} 7. f3 {[%emt 0:04:49]} h5 {[%emt 0:00:19]} 8. Be3 {[%emt 0:00:57]} a6 {[%emt 0:01:44]} 9. Qd2 {[%emt 0:01:31]} Rb8 {[%emt 0:02:30]} 10. Nc1 {[%emt 0:05:55]} e5 {[%emt 0:08:36]} 11. Nb3 {[%emt 0:04:22]} exd4 {[%emt 0:01:25]} 12. Nxd4 {[%emt 0:00:21]} Re8 {[%emt 0:04:25]} 13. Be2 {[%emt 0:03:34]} Ne5 {[%emt 0:01:16]} 14. Bg5 {[%emt 0:03:13]} c5 {[%emt 0:10:23]} 15. Nc2 {[%emt 0:00:15]} Be6 {[%emt 0:00:04]} 16. Ne3 {[%emt 0:00:04]} Qa5 {[%emt 0:12:00]} 17. O-O {[%emt 0:10:19]} Nh7 {[%emt 0:05:08]} 18. Bf4 {[%emt 0:01:32]} Rbd8 {[%emt 0:09:40]} 19. Rfd1 {[%emt 0:06:57]} Rd7 {[%emt 0:02:15]} 20. Ncd5 {[%emt 0:06:26]} Qd8 {[%emt 0:00:24]} 21. g3 {[%emt 0:08:07]} Nc6 {[%emt 0:02:14]} 22. Rab1 {[%emt 0:01:46]} Nd4 {[%emt 0:04:21]} 23. Kg2 {[%emt 0:06:07]} Nxe2 {[%emt 0:10:06]} 24. Qxe2 {[%emt 0:00:07]} f5 {[%emt 0:00:21]} 25. exf5 {[%emt 0:02:12]} Bxf5 {[%emt 0:00:04]} 26. Rbc1 {[%emt 0:00:14]} Rf7 {[%emt 0:01:25]} 27. Qd2 {[%emt 0:00:30]} Bc8 {[%emt 0:01:03]} 28. Qd3 {[%emt 0:01:30]} Nf8 {[%emt 0:03:49]} 29. b3 {[%emt 0:03:42]} Bd4 {[%emt 0:03:19]} 30. Bg5 {[%emt 0:03:21]} Qd7 {[%emt 0:00:14]} 31. Rh1 {[%emt 0:00:03]} Kg7 {[%emt 0:05:04]} 32. Rce1 {[%emt 0:08:46]} b5 {[%emt 0:03:55]} 33. Qd2 {[%emt 0:05:21]} Ne6 {[%emt 0:01:46]} 34. Nc2 {[%emt 0:01:42]} Nxg5 {[%emt 0:01:58]} 35. Nxd4 {[%emt 0:01:33]} Rxe1 {[%emt 0:00:14]} 36. Qxe1 {[%emt 0:00:08]} cxd4 {[%emt 0:00:12]} 37. hxg5 {[%emt 0:00:04]} Qf5 {[%emt 0:00:10]} 38. Qe4 {[%emt 0:00:56]} Qxe4 {[%emt 0:01:19]} 39. fxe4 {[%emt 0:00:04]} bxc4 {[%emt 0:00:24]} 40. bxc4 {[%emt 0:00:06]} Bg4 {[%emt 0:00:06]} 41. Nf6 {[%emt 0:30:43]} Rb7 {[%emt 0:06:35]} 42. Nxg4 {[%emt 0:00:00]} hxg4 {[%emt 0:00:05]} 43. Rd1 {[%emt 0:00:00]} Rb2+ {[%emt 0:01:31]} 44. Kf1 {[%emt 0:00:00]} Kf7 {[%emt 0:00:29]} 45. Rxd4 {[%emt 0:00:00]} Ke6 {[%emt 0:00:05]} 46. Rd5 {[%emt 0:00:00]} Rc2 {[%emt 0:04:45]} 47. Ra5 {[%emt 0:00:00]} Rxc4 {[%emt 0:00:12]} 48. Ke2 {[%emt 0:00:00]} Rxe4+ {[%emt 0:01:00]} 49. Kd3 {[%emt 0:00:00]} Re5 {[%emt 0:05:25]} 50. Rxa6 {[%emt 0:00:00]} Rf5 {[%emt 0:00:04]} 51. a4 {[%emt 0:00:00]} Rf3+ {[%emt 0:00:07]} 52. Ke4 {[%emt 0:00:00]} Rxg3 {[%emt 0:00:20]} 53. Kf4 {[%emt 0:00:00]} Rg1 {[%emt 0:00:20]} 54. a5 {[%emt 0:00:00]} g3 {[%emt 0:01:38]} 55. Kf3 {[%emt 0:00:00]} g2 {[%emt 0:03:32]} 56. Ra8 {[%emt 0:00:00]} Rf1+ {[%emt 0:05:02]} 57. Kxg2 {[%emt 0:00:00]} Rf5 {[%emt 0:00:02]} 58. a6 {[%emt 0:00:00]} Rxg5+ {[%emt 0:00:04]} 59. Kf3 {[%emt 0:00:00]} Ra5 {[%emt 0:00:05]} 60. a7 {[%emt 0:00:00]} Kd5 {[%emt 0:00:13]} 61. Kf4 {[%emt 0:00:00]} Kc6 {[%emt 0:09:06]} 62. Rc8+ {[%emt 0:00:00]} Kb7 {[%emt 0:00:04]} 63. Rd8 {[%emt 0:00:00]} 1/2-1/2